Cogmind - Beta 17 @@@ ROGUE MODE // 2026.07.12 @ 16:57:35 Player: atom Result: Destroyed self with Mini Grenade Launcher Performance ------------- Evolutions (1) 500 Regions Visited (3) 600 Robots Destroyed (53) 265 Value Destroyed (1045) 1045 Prototype IDs (2) 40 Alien Tech Used (0) 0 Bonus (0) 0 TOTAL SCORE: 2450 Bonus ------- None Cogmind --------- Core Integrity 0/400 Matter 240/300 Energy 100/100 System Corruption 0% Temperature Cool (0) Movement Hovering (56) Location -9/Storage Parts ------- > --- POWER (1) -------- (None) > --- PROPULSION (3) --- Hover Unit Improved Hover Unit > --- UTILITY (3) ------ Visual Processing Unit Targeting Computer Drone Bay (1/2) > --- WEAPON (2) ------- Rocket Launcher Mini Grenade Launcher > --- INVENTORY (5) ---- Improved Light Armor Plating Improved Light Armor Plating Improved Light Armor Plating Drone Bay (2/2) Peak State ------------ > --- POWER ------------ Light Ion Engine > --- PROPULSION ------- Improved Hover Unit Improved Hover Unit Improved Hover Unit > --- UTILITY ---------- Visual Processing Unit Targeting Computer Drone Bay > --- WEAPON ----------- EM Shotgun Mini Grenade Launcher > --- INVENTORY -------- Improved Light Armor Plating Improved Light Armor Plating Improved Light Armor Plating Drone Bay Drone Bay [Rating: 20] Favorites ----------- Power Light Ion Engine Engine Light Ion Engine Propulsion Light Treads Treads Light Treads Leg Aluminum Leg Wheel Wheel Hover Unit Improved Hover Unit Flight Unit Flight Unit Utility Targeting Computer Device Drone Bay Storage Small Storage Unit Processor Targeting Computer Protection Improved Light Armor Plating Weapon EM Shotgun Energy Gun EM Shotgun Energy Cannon Light EM Pulse Cannon Ballistic Gun Heavy Assault Rifle Launcher Mini Grenade Launcher Impact Weapon Maul Build | -11 -10 -9 -9 ------- Run | Yrd Mat Mat Sto Slots Evolved 2 | . . 2 . Power . | . . . . Propulsion 1 | . . 1 . Utility 1 | . . 1 . Weapon . | . . . . Parts Attached 43 | 5 6 24 8 Power 6 | 1 1 3 1 Engine 6 | 1 1 3 1 Core . | . . . . Reactor . | . . . . Propulsion 17 | 2 1 13 1 Treads 8 | 2 1 5 . Leg 2 | . . 2 . Wheel 1 | . . 1 . Hover 4 | . . 3 1 Flight 2 | . . 2 . Utility 7 | 1 1 3 2 Device 2 | . . . 2 Storage 1 | 1 . . . Processor 3 | . 1 2 . Hackware . | . . . . Protection 1 | . . 1 . Artifact . | . . . . Weapon 13 | 1 3 5 4 Energy Gun 3 | . 1 1 1 Energy Cannon 1 | . . 1 . Ballistic Gun 4 | 1 1 2 . Ballistic Cannon . | . . . . Launcher 4 | . . 1 3 Special Weapon . | . . . . Impact Weapon 1 | . 1 . . Slashing Weapon . | . . . . Piercing Weapon . | . . . . Special Melee Weapon . | . . . . Unidentified Prototypes . | . . . . Parts Lost 21 | . 5 13 3 Power 4 | . 1 2 1 Propulsion 11 | . 3 7 1 Utility 1 | . . 1 . Weapon 5 | . 1 3 1 Highest Loss Streak 6 | . 3 6 2 To Critical Strikes . | . . . . Average Backups 5 | 3 7 4 4 Power . | . 1 . . Propulsion 1 | 2 5 . . Utility 1 | . . 2 4 Weapon 1 | 1 . 1 . Tool/Special . | . . . . Unused Backups 5 | . 1 . 4 Power . | . . . . Propulsion 1 | . 1 . . Utility 4 | . . . 4 Weapon . | . . . . Tool/Special . | . . . . Average Slot Usage (%) 85 | . 84 85 86 Engine 8 | . 12 7 6 Treads 20 | . 25 23 . Leg 1 | . . 2 . Hover 3 | . . . 27 Flight 1 | . . 2 . Device 1 | . . . 9 Storage 3 | . 14 . . Processor 16 | . 5 19 22 Protection 4 | . . 7 . Energy Gun 6 | . 7 6 7 Ballistic Gun 7 | . 8 7 . Launcher 2 | . . 1 12 Impact Weapon 4 | . 8 4 . Peak Build Rating 20 | 5 8 17 20 Average Rating 11 | 4 6 13 17 On Entrance 5 | . 5 5 12 Avg Prop Armor Cover (%) 14 | . . 14 . Naked Turns . | . . . . Heaviest Build 16 | 10 15 14 16 Greatest Support 60 | 40 40 60 21 Greatest Overweight (x) 2 | . 2 1 1 Average Overweight (x) . | . . . . Largest Inventory Capacity 8 | 8 8 8 5 Average Capacity 5 | 7 8 5 5 Most Carried 8 | 7 8 6 5 Average Carried 5 | 4 7 4 4 Final Capacity 8 | 8 8 5 5 Final Carried 7 | 7 6 5 4 Class Distribution -------------------- 74% | Mutant 25% | Scavenger-Mutant Dominant Class ---------------- Mutant | -10/Materials Mutant | -9/Materials Mutant | -9/Storage Resources | -11 -10 -9 -9 ----------- Run | Yrd Mat Mat Sto Matter Collected 907 | 211 100 505 91 Remotely . | . . . . Salvage Created 1243 | . 283 805 155 Parts 89 | . 13 60 16 Haulers Intercepted 3 | . 1 1 1 Recyclers Shooed . | . . . . Parts Field Recycled . | . . . . Retrieved Matter . | . . . . Parts Self-Destructed . | . . . . Prevented . | . . . . Parts Restored . | . . . . Kills | -11 -10 -9 -9 ------- Run | Yrd Mat Mat Sto Combat Hostiles Destroyed 43 | . 9 26 8 Melee 4 | . 4 . . Guns 16 | . 4 8 4 Cannons 1 | . . 1 . AOE 20 | . . 16 4 Classes Destroyed 7 | . 3 4 . Worker 3 | . . 2 1 Builder 2 | . . 2 . Hauler 3 | . 1 1 1 Watcher 2 | . . 2 . Swarmer 24 | . 5 12 7 Grunt 14 | . 4 9 1 Sentry 5 | . . 5 . Best Kill Streak 6 | . 3 5 6 Combat Bots Only 4 | . 3 4 4 Max Kills in Single Turn 3 | . 1 3 3 Gunslinging . | . . . . Exploded 3 | . . 3 2 Melee 1 | . 1 . . Uniques/NPCs Destroyed . | . . . . Combat | -11 -10 -9 -9 -------- Run | Yrd Mat Mat Sto Hostile Shots Fired 321 | . 108 179 34 Missed 74 | . 21 46 7 Hits 247 | . 87 133 27 Projectile 247 | . 87 133 27 Critical Strikes 7 | . 1 6 . Damage Taken 2863 | . 798 1697 368 Core 537 | . 134 338 65 Absorbed by Shields . | . . . . Regen/Repaired (Parts) 41 | . . 41 . Core Remaining (%) 73 | 100 46 . . Volleys Fired 106 | . 23 66 17 Largest 2 | . 2 2 2 Hottest 75 | . 60 75 63 Shots Fired 142 | . 28 97 17 Gun 113 | . 28 74 11 Cannon 8 | . . 8 . Launcher 21 | . . 15 6 Special . | . . . . Kinetic 59 | . 16 43 . Thermal . | . . . . Explosive 21 | . . 15 6 Electromagnetic 62 | . 12 39 11 Robot Hit Streak 16 | . 10 15 16 Robot Miss Streak 4 | . 3 4 2 Penetration Max . | . . . . Secondary Targets 1 | . . 1 . Max Gunslinging Chain 1 | . . 1 . Shots Hit Robots 111 | . 25 74 12 Core Hits 68 | . 10 46 12 Critical Kills 3 | . 2 1 . Critical Parts Destroyed 4 | . 3 1 . Critical Strikes 8 | . 5 3 . Destroy 2 | . 1 1 . Corrupt 1 | . . 1 . Smash 5 | . 4 1 . Melee Attacks 30 | . 19 11 . Impact 30 | . 19 11 . Slashing . | . . . . Piercing . | . . . . Sneak Attacks 1 | . . 1 . Combat Hostiles . | . . . . Follow-up Attacks . | . . . . Damage Inflicted 3361 | . 468 2356 537 Guns 1210 | . 210 892 108 Cannons 113 | . . 113 . Explosions 1624 | . . 1195 429 Melee 414 | . 258 156 . Ramming . | . . . . Kinetic 560 | . 99 461 . Thermal 300 | . . 196 104 Explosive 1324 | . . 999 325 Electromagnetic 763 | . 111 544 108 Impact 414 | . 258 156 . Slashing . | . . . . Piercing . | . . . . Highest Corruption . | . . . . Average Corruption . | . . . . Corruption Purged . | . . . . Corruption Blocked . | . . . . Overload Shots . | . . . . Overflow Damage 165 | . 74 42 49 Projectiles . | . . . . Explosions 55 | . . 6 49 Melee 110 | . 74 36 . Knockbacks 1 | . . 1 . Impact 1 | . . 1 . Kinetic . | . . . . Secondary . | . . . . Self-Inflicted Damage 119 | . . 31 88 Shots 4 | . . 1 3 Rammed . | . . . . Targets Rammed . | . . . . Kicked . | . . . . Crushed . | . . . . Highest Temperature 111 | . 12 111 24 Average Temperature 27 | . 7 33 8 Received Heat Transfer 939 | . 204 696 39 Siege Activations . | . . . . Martial Activations . | . . . . Shielding Activations . | . . . . Robots Disrupted . | . . . . Combat Hostiles . | . . . . Robots Corrupted 2 | . 1 1 . Combat Hostiles 2 | . 1 1 . Parts Fried 1 | . 1 . . Impact Corruptions 5 | . 3 2 . Robots Melted . | . . . . Combat Hostiles . | . . . . Parts Melted . | . . . . Heat Transferred 350 | . . 200 150 Parts Sabotaged . | . . . . Parts Stolen . | . . . . Parts Stripped . | . . . . Power Chain Reactions 4 | . . 3 1 Alert | -11 -10 -9 -9 ------- Run | Yrd Mat Mat Sto Maximum Alert Level 1 | . . 1 . Low Security (%) 64 | 100 100 42 100 Level 1 35 | . . 57 . Level 2 . | . . . . Level 3 . | . . . . Level 4 . | . . . . Level 5 . | . . . . High Security . | . . . . Max Security . | . . . . Peak Influence 364 | . 57 364 172 Initial 86 | . . 21 86 Average 148 | . 16 213 111 Influence Increases 1595 | . 263 967 365 Destroy 0b10 Robot/C 860 | . 180 520 160 Destroy 0b10 Robot/NC 50 | . 5 35 10 Destroy Leader 190 | . 42 126 22 Successful Hack 39 | . 21 12 6 Disable Machine 60 | . 15 30 15 Destroy Structure 156 | . . 109 47 Partial Spotted 15 | . . . 15 Lose Combat Pursuer 225 | . . 135 90 Influence Decreases 1482 | . 211 813 458 Entered New Map 151 | . . 31 120 Time Decay 793 | . 161 502 130 Lost Part 210 | . 50 130 30 Lost Ally 28 | . . . 28 Purge Threat 300 | . . 150 150 Squads Dispatched 7 | . 3 4 . Investigation 3 | . 2 1 . Extermination . | . . . . Reinforcement 4 | . 1 3 . Assault . | . . . . Garrison . | . . . . Intercept . | . . . . Searches Triggered . | . . . . Construction Impeded . | . . . . Haulers Reinforced . | . . . . Active Scanning Responses . | . . . . Cargo Convoy Interrupts . | . . . . Stealth | -11 -10 -9 -9 --------- Run | Yrd Mat Mat Sto Distress Signals 3 | . . 3 . Communications Jammed . | . . . . Distress Signals . | . . . . Times Spotted 75 | . 15 45 15 Peak Tracking Total 8 | . 3 8 6 Tactical Retreats 9 | . . 6 3 Traps | -11 -10 -9 -9 ------- Run | Yrd Mat Mat Sto Traps Triggered 4 | . 2 1 1 Indirectly . | . . . . Trap Hack Attempts . | . . . . Triggered . | . . . . Disarmed . | . . . . Reprogrammed . | . . . . Reused . | . . . . Traps Extracted . | . . . . Installed . | . . . . Triggered . | . . . . Machines | -11 -10 -9 -9 ---------- Run | Yrd Mat Mat Sto Machines Disabled 4 | . 1 2 1 Max in Single Turn 1 | . 1 1 1 Garrison Access 1 | . . . 1 Machines Repaired . | . . . . Machines Dismantled . | . . . . Machines Sabotaged . | . . . . Overloaded Fab Kills . | . . . . Hacking | -11 -10 -9 -9 --------- Run | Yrd Mat Mat Sto Machines Accessed 19 | . 4 10 5 Terminals 14 | . 4 7 3 Fabricators . | . . . . Repair Stations 1 | . . 1 . Recycling Units 2 | . . 1 1 Scanalyzers 1 | . . 1 . Garrison Access 1 | . . . 1 Total Hacks 50 | . 10 25 15 Successful 19 | . 5 8 6 Failed 30 | . 5 16 9 Catastrophic 9 | . 2 6 1 Database Lockouts 1 | . . 1 . Manual 32 | . 4 16 12 Terminals 38 | . 10 18 10 Fabricators . | . . . . Repair Stations 2 | . . 2 . Recycling Units 7 | . . 3 4 Scanalyzers 2 | . . 2 . Garrison Access 1 | . . . 1 Terminal Hacks 8 | . 3 2 3 Record 1 | . . 1 . Prototype ID Bank 1 | . 1 . . Open Door 1 | . . . 1 Unreport Threat 2 | . . 1 1 Locate Traps 1 | . . . 1 Recall Investigation 1 | . 1 . . Hauler Manifests 1 | . 1 . . Fabricator Hacks . | . . . . Repair Station Hacks 2 | . . 2 . Scan Component 1 | . . 1 . Repair 1 | . . 1 . Recycling Unit Hacks 1 | . . 1 . Report Inventory 1 | . . 1 . Scanalyzer 1 | . . 1 . Retrieve Study 1 | . . 1 . Garrison Access Hacks 1 | . . . 1 Seal Access 1 | . . . 1 Unauthorized Hacks 6 | . 2 2 2 Terminals 2 | . 2 . . Assimilate 1 | . 1 . . Botnet 1 | . 1 . . Fabricators . | . . . . Repair Stations . | . . . . Recycling Units 4 | . . 2 2 Reject 2 | . . 1 1 Mask 2 | . . 1 1 Scanalyzers . | . . . . Garrison Access . | . . . . Data Cores Recovered . | . . . . Used . | . . . . Hacking Detections 13 | . 4 7 2 Full Trace Events 2 | . . 1 1 Feedback Events . | . . . . Feedback Blocked . | . . . . Robot Schematics Acquired . | . . . . Robots Built . | . . . . Authchips . | . . . . Time . | . . . . Total Robot Build Rating . | . . . . Part Schematics Acquired . | . . . . Parts Built . | . . . . Authchips . | . . . . Time . | . . . . Total Part Build Rating . | . . . . Part Studies Acquired 1 | . . 1 . Parts Repaired 1 | . . 1 . Time 32 | . . 32 . Parts Recycled . | . . . . Recycled Matter . | . . . . Retrieved Matter . | . . . . Retrieved Components . | . . . . Parts Scanalyzed . | . . . . Part Schematics Acquired . | . . . . Parts Damaged . | . . . . Bothacking | -11 -10 -9 -9 ------------ Run | Yrd Mat Mat Sto Used RIF Installer . | . . . . Robots Hacked . | . . . . Non-combat . | . . . . Combat . | . . . . Robot Hacks Applied . | . . . . Relay Couplers Released . | . . . . Fabnet Peak Effective % . | . . . . Robots Rewired . | . . . . Allies Hacked . | . . . . Hacks Repelled . | . . . . Allies | -11 -10 -9 -9 -------- Run | Yrd Mat Mat Sto Total Allies . | . . . . Largest Group . | . . . . Highest-Rated Group . | . . . . Highest-Rated Ally . | . . . . Total Orders . | . . . . Ally Attacks . | . . . . Total Damage . | . . . . Kills . | . . . . Allies Corrupted . | . . . . Allies Melted . | . . . . Intel | -11 -10 -9 -9 ------- Run | Yrd Mat Mat Sto Active Infowar (turns) 628 | . . 358 270 Optics 628 | . . 358 270 Robot Analysis Total . | . . . . Derelict Logs Recovered . | . . . . Drone Launches 5 | . . . 5 Drone Recoveries 2 | . . . 2 Exploration | -11 -10 -9 -9 ------------- Run | Yrd Mat Mat Sto Turns Passed 2332 | 92 525 1445 270 Spaces Moved 1509 | 58 249 922 280 Core 120 | 15 3 102 . Treads 803 | 43 246 514 . Legs 100 | . . 100 . Wheels 19 | . . 19 . Hover 306 | . . 26 280 Flight 161 | . . 161 . Fastest Speed 37 | 50 150 37 52 Average Speed 115 | 131 159 120 55 Slowest Speed 160 | 160 160 160 116 Overloaded Moves . | . . . . Propulsion Burnouts . | . . . . Robots Hopped 3 | . . 3 . Potential Cave-ins . | . . . . Cave-ins Triggered . | . . . . Exploration Rate (%) 44 | 3 63 74 39 Regions Visited 3 Branch Regions 1 Pre-discovered Areas . | . . . . Known Exits Taken . | . . . . Unknown Exits Taken 3 | 1 1 1 . Scrap Searched . | . . . . Spaces Dug . | . . . . Terrain Destroyed 175 | . . 115 60 Melee . | . . . . Projectile . | . . . . AOE 175 | . . 115 60 Terrain Rammed . | . . . . Walls Destroyed . | . . . . Machines Disabled . | . . . . Actions | -11 -10 -9 -9 --------- Run | Yrd Mat Mat Sto Total 1897 | 74 312 1133 378 Wait 146 | . 10 84 52 Move 1500 | 57 248 915 280 Hop 3 | . . 3 . Pick Up 34 | 12 3 15 4 Fast Attach 9 | . 2 5 2 Attach 27 | 5 3 16 3 Detach 2 | . . 2 . Swap 14 | . 1 9 4 Drop 15 | . 3 7 5 Fire 106 | . 23 66 17 Melee 30 | . 19 11 . Ram . | . . . . Kick . | . . . . Crush . | . . . . Escape Stasis 11 | . . . 11 Rewire . | . . . . Trap . | . . . . Miscellaneous . | . . . . Route ------- -11/Scrapyard -10/Materials (discovered 3 exits: *Mat / [*Min] / [*Sub]) -9/Materials (discovered 5 exits: [*Mat x2] / [*Min] / *Sto x2) -9/Storage History --------- Turn | Location | Event 5 | -11/Scrapyard | Discovered new exit (range 15) 93 | -11/Scrapyard | Entered Materials 94 | -10/Materials | Met a group of wandering Federalists 267 | -10/Materials | Discovered new exit (range 7) 274 | -10/Materials | Discovered new exit (range 8) 308 | -10/Materials | Build established: Mutant 541 | -10/Materials | Discovered new exit (range 16) 610 | -10/Materials | Core integrity fell below 50% 618 | -10/Materials | Entered another Materials area 618 | -9/Materials | Evolved 2 slots: Propulsion x1, Utility x1 625 | -9/Materials | Discovered new exit (range 7) 642 | -9/Materials | Lost 3 parts (1p2n) 669 | -9/Materials | Central database locked down 1152 | -9/Materials | Discovered new exit (range 8) 1250 | -9/Materials | Repaired Mni. Grenade Launcher 1682 | -9/Materials | Discovered new exit (range 7) 1726 | -9/Materials | Build established: Scavenger-Mutant 1841 | -9/Materials | Discovered new exit (range 4) 1959 | -9/Materials | Discovered new exit (range 9) 1979 | -9/Materials | Core integrity fell below 50% 2054 | -9/Materials | Core integrity fell below 20% 2063 | -9/Materials | Entered Storage 2067 | -9/Storage | Lost 6 parts (3n1u2w) 2310 | -9/Storage | Build established: Mutant 2333 | -9/Storage | Destroyed self with Mini Grenade Launcher Last Messages --------------- 02203_ Storage Shell breached. 02203_ K-01 Serf destroyed. 02203_ A-02 Transporter destroyed. 02204_ Acquired 1 matter. 02206_ Drone released from Drone Bay. 02208_ Drone destroyed. 02243_ Connecting with Door Terminal... 02244_ Dropped Mni. Grenade Launcher. 02252_ Dropped Drone Bay. 02253_ Acquired Mni. Grenade Launcher. 02280_ Lgt. Ion Engine destroyed. 02280_ Destroyed Lgt. Ion Engine. 02280_ EM Shotgun destroyed. 02280_ Destroyed EM Shotgun. 02290_ Drone released from Drone Bay. 02321_ Drone suffers critical hit (Burn). 02321_ Drone destroyed. 02326_ U-05 Engineer lays Concrete. 02330_ Drone retrieved by Drone Bay (repair cost: 2). Map ----- +----------------------------------------------------+ | ????????????????????????????????????????????? | | ????????????????????????????????????????????? | | ????????????????????????????????????????????? | | ????????????????????????????????????????????? | | ????????????????????????????????????????????? | | ????????????????????????????????????????????? | | ????????????????????????????????????????????? | | ????????????????????????????????????????????? | | ?????###########????????????????????????????? | | ?????# """ """ #??????????????#####?????????? | | ###??# """ """ #??????????????#] ]#?????????? | | #T#### """ """ #??????????????#] ]#?????????? | | # #??????????????# ]#?????????? | | # #??????????????#]!]#?????????? | | # #??????????????# ##????????? | | %""" # #???????#####??# T#????????? | | """ # #???????#"""#### #####?????? | | """ #####+#############"Y"######+#########?? | | / #?? | | ######### #?? | | ######### [ #?? | | ### ############## ####+####### #?? | | #?# #???????????# # ####### #?? | | #?# #???????????#! [ ###???# #?? | | #?# #???????????# " #?????# #?? | | #########?#+#???????????#@!!Y T##?????# #?? | | #??????????????!#???????## ##?????# #?? | | #???????????? !!#???????# #?###?# #?? | | #?????????? #???????## ###T### #?? | | #######?? ????????# Y Y + #?? | | / = # """ ""??????????# # u """ # #?? | | #### / """ ""??????????#### """ # #?? | | #??# # """ ""?????????????## """ + #?? | | #??# #?? ????????????# "" """ # #?? | | #??# #???? ####????????????# "G """ # #?? | | #?? ?????????????????????# "" # #?? | | ??? #????????????????????# # #?? | | ?? #????????????????????########### #?? | | ??# #??????????????????????????????#####?? | | ??######????????????????????????????????????? | | ????????????????????????????????????????????? | | ????????????????????????????????????????????? | | ????????????????????????????????????????????? | | ????????????????????????????????????????????? | | ????????????????????????????????????????????? | | ????????????????????????????????????????????? | | ????????????????????????????????????????????? | | ????????????????????????????????????????????? | | ????????????????????????????????????????????? | | ????????????????????????????????????????????? | +----------------------------------------------------+ Best States ------------- Heat Dissipation 28 Energy Generation 10 Energy Capacity 250 Matter Stores 300 Matter Capacity 300 Sight Range 18 Terrain Scan Density 10 Armor Coverage 150 Evasion (%) 62 Targeting Accuracy 5 Recoil Reduction 3 Item Schematics ----------------- None Robot Schematics ------------------ None Fabricated ------------ Nothing Repaired ---------- Mni. Grenade Launcher | 18% | -9/Materials Studied --------- Flight Unit | -9/Materials | Hacked Alien Tech Used ----------------- None Achievements -------------- DATA ERROR: Steam Global Achievement% Item+ Myspace Organ Harvest Overwhelming Physics Hates This One Trick Resistances Are Futile Spot Them First There's More Where That Came From Throw Away The Key Universal Adapter Challenges ------------ None Game ------ Seed PhasingEtherialArmor Manual? 0 Play Time 00:38:18 Cumulative 25.3 hours Start 2026.07.12 @ 16:17:21 End 2026.07.12 @ 16:57:35 Sessions 5 Manual Loads 0 Difficulty Rogue Special Mode None Game No. 24 Rogue 24 Adventurer 0 Explorer 0 Win Type - Total 0 Types 0/0/0/0/0/0/0/0/0/0 Lore% 14 Gallery% 27 Achievement% 16 Wizard Run 0 Options --------- Layout 1 ASCII 0 Keyboard 0 Movement Mouse Keybinds 0 Fullscreen 1 Font 32/SmallcapsGlow Map View 50x35 Zoom Use 0% Tactical HUD 1 Map Filters NONE Filters NONE Steam 1 RUN: b5c00eb8-5ea8-449f-9005-d1b080bb1863